Workbook

Sheet Račun
A1: masa | B1: 1000
A2: osnova | B2: 100
I3: Lista | K3: 2010-04-01 | M3: Na dan | O3: 2010-05-08
A5: Vrsta | B5: faktura | C5: cijana | D5: porez | E5: Koeficijent | F5: iznos dev | G5: šećer | H5: ukupno | I5: dio | J5: sveukupno | K5: celuloza | L5: ukupno | M5: dio | N5: sveukupno | O5: Vitamini | P5: ukupno | Q5: dio | R5: sveukupno | S5: Minerali | T5: ukupno | U5: dio | V5: sveukupno | W5: soli | X5: ukupno | Y5: dio | Z5: sveukupno | AA5: bjelančevine | AB5: ukupno | AC5: dio | AD5: sveukupno | AE5: Masnoće | AF5: ukupno | AG5: dio | AH5: sveukupno | AI5: Proteini | AJ5: ukupno | AK5: dio | AL5: sveukupno | AM5: Suma I | AN5: Suma II | AO5: Suma III
A6: bonta | B6: 52 | C6: 11 | D6: 21 | E6: =C6/600 -> 0.01833333333 | F6: =D6/600/0.5%/E6 -> 381.8181818 | G6: =osnova-K6-O6-S6 -> 88 | H6: =masa*$E6/osnova*G6 -> 16.13333333 | I6: =Dio(masa,$E6,osnova,$F6,H6) -> 70.08066667 | J6: =H6+I6 -> 86.214 | K6: 3 | L6: =masa*$E6/osnova*K6 -> 0.55 | M6: =Dio(masa,$E6,osnova,$F6,L6) -> 70.00275 | N6: =L6+M6 -> 70.55275 | O6: 8 | P6: =masa*$E6/osnova*O6 -> 1.466666667 | Q6: =Dio(masa,$E6,osnova,N6,P6) -> 12.94200417 | R6: =P6+Q6 -> 14.40867083 | S6: 1 | T6: =masa*$E6/osnova*S6 -> 0.1833333333 | U6: =Dio(masa,$E6,osnova,R6,T6) -> 2.642506319 | V6: =T6+U6 -> 2.825839653 | W6: 10 | X6: =masa*$E6/osnova*W6 -> 1.833333333 | Y6: =Dio(masa,$E6,osnova,V6,X6) -> 0.5272372697 | Z6: =X6+Y6 -> 2.360570603 | AA6: 3 | AB6: =masa*$E6/osnova*AA6 -> 0.55 | AC6: =Dio(masa,$E6,osnova,Z6,AB6) -> 0.4355212772 | AD6: =AB6+AC6 -> 0.9855212772 | AE6: 40 | AF6: =masa*$E6/osnova*AE6 -> 7.333333333 | AG6: =Dio(masa,$E6,osnova,AD6,AF6) -> 0.2173455675 | AH6: =AF6+AG6 -> 7.550678901 | AJ6: =masa*$E6/osnova*AI6 -> 0 | AK6: =Dio(masa,$E6,osnova,AH6,AJ6) -> 1.384291132 | AL6: =AJ6+AK6 -> 1.384291132 | AM6: =L6+P6+T6+X6+AB6+AF6+AJ6+H6 -> 28.05 | AN6: =M6+Q6+U6+Y6+AC6+AG6+AK6+I6 -> 158.2323224 | AO6: 186.2823224
A7: jagi | B7: 68 | C7: 15 | D7: 25 | E7: 0.025 | F7: 333.3333333 | G7: =osnova-K7-O7-S7 -> 92 | H7: =masa*$E7/osnova*G7 -> 23 | I7: =Dio(masa,$E7,osnova,F7,H7) -> 83.44833333 | J7: =H7+I7 -> 106.4483333 | L7: =masa*$E7/osnova*K7 -> 0 | M7: 0 | N7: 0 | O7: 8 | P7: =masa*$E7/osnova*O7 -> 2 | Q7: =Dio(masa,$E7,osnova,N7,P7) -> 0.01 | R7: 2.01 | T7: =masa*$E7/osnova*S7 -> 0 | U7: 0 | V7: 0 | X7: =masa*$E7/osnova*W7 -> 0 | Y7: =Dio(masa,$E7,osnova,V7,X7) -> 0 | Z7: 0 | AB7: =masa*$E7/osnova*AA7 -> 0 | AC7: =Dio(masa,$E7,osnova,Z7,AB7) -> 0 | AD7: 0 | AE7: 40 | AF7: =masa*$E7/osnova*AE7 -> 10 | AG7: =Dio(masa,$E7,osnova,AD7,AF7) -> 0.05 | AH7: 10.05 | AI7: 1 | AJ7: =masa*$E7/osnova*AI7 -> 0.25 | AK7: =Dio(masa,$E7,osnova,AH7,AJ7) -> 2.51375 | AL7: 2.76375 | AM7: =L7+P7+T7+X7+AB7+AF7+AJ7+H7 -> 35.25 | AN7: 86.02208333 | AO7: 121.2720833
A8: care | B8: 30 | C8: 20 | D8: 24 | E8: 0.03333333333 | F8: 240 | G8: =osnova-K8-O8-S8 -> 84 | H8: =masa*$E8/osnova*G8 -> 28 | I8: =Dio(masa,$E8,osnova,F8,H8) -> 80.14 | J8: 108.14 | K8: 8 | L8: =masa*$E8/osnova*K8 -> 2.666666667 | M8: =Dio(masa,$E8,osnova,J8,L8) -> 36.06 | N8: 38.72666667 | O8: 8 | P8: =masa*$E8/osnova*O8 -> 2.666666667 | Q8: =Dio(masa,$E8,osnova,N8,P8) -> 12.92222222 | R8: 15.58888889 | T8: =masa*$E8/osnova*S8 -> 0 | U8: 0 | V8: 0 | X8: =masa*$E8/osnova*W8 -> 0 | Y8: 0 | Z8: 0 | AB8: =masa*$E8/osnova*AA8 -> 0 | AC8: =Dio(masa,$E8,osnova,Z8,AB8) -> 0 | AD8: 0 | AF8: =masa*$E8/osnova*AE8 -> 0 | AG8: =Dio(masa,$E8,osnova,AD8,AF8) -> 0 | AH8: 0 | AI8: 0.2 | AJ8: =masa*$E8/osnova*AI8 -> 0.06666666667 | AK8: =Dio(masa,$E8,osnova,AH8,AJ8) -> 0.0003333333333 | AL8: 0.067 | AM8: 33.4 | AN8: 129.1225556 | AO8: 162.5225556

Sheet rekapitulacija
A3: =Račun!B6 -> 52 | B3: =Račun!A6 -> bonta
A6: =Račun!I3 -> Lista | C6: =Račun!K3 -> 2010-04-01 | E6: =Račun!M3 -> Na dan | G6: =Račun!O3 -> 2010-05-08
A15: =Račun!A5 -> Vrsta | F15: Količina | G15: ='[1]Rekapitulacija listića'!$G$14 -> IZNOS
A17: =Račun!G5 -> šećer | F17: =SUM(A:Z!F17) -> 264 | G17: =SUM(A:Z!G17) -> 300.8023333
A18: =Račun!K5 -> celuloza | F18: =SUM(A:Z!F18) -> 11 | G18: =SUM(A:Z!G18) -> 109.2794167
A19: =Račun!O5 -> Vitamini | F19: =SUM(A:Z!F19) -> 24 | G19: =SUM(A:Z!G19) -> 32.00755972
A20: =Račun!S5 -> Minerali | F20: =SUM(A:Z!F20) -> 2.642506319 | G20: =SUM(A:Z!G20) -> 2.825839653
A21: =Račun!W5 -> soli | F21: =SUM(A:Z!F21) -> 10 | G21: =SUM(A:Z!G21) -> 2.360570603
A22: =Račun!AA5 -> bjelančevine | F22: =SUM(A:Z!F22) -> 3 | G22: =SUM(A:Z!G22) -> 0.9855212772
A23: =Račun!AE5 -> Masnoće | F23: =SUM(A:Z!F23) -> 80 | G23: =SUM(A:Z!G23) -> 17.6006789
A24: =Račun!AI5 -> Proteini | F24: =SUM(A:Z!F24) -> 1.2 | G24: =SUM(A:Z!G24) -> 0.3166666667
A25: Ostalo | F25: =SUM(A:Z!F25) -> 264 | G25: =SUM(A:Z!G25) -> 0
A26: Masa | F26: =SUM(A:Z!F26) -> 264 | G26: =SUM(A:Z!G26) -> 67.13333333
A27: Osnova
A28: Stimulansi
A29: ='[1]Bruto s bolovanjem'!$AY$30 -> Dodatak
A31: Ukupni bruto iznos | F31: =SUM(F26,F24,F23,F20,F19,F18,F17) -> 646.8425063 | G31: =SUM(G26,G24,G23,G20,G17) -> 388.6788519
A35: ='[1]Rekapitulacija listića'!A34 -> Poštovani,

Sheet A

Sheet bonta
A3: =Račun!B6 -> 52 | B3: =Račun!A6 -> bonta
A6: =Račun!I3 -> Lista | C6: =Račun!K3 -> 2010-04-01 | E6: =Račun!M3 -> Na dan | G6: =Račun!O3 -> 2010-05-08
A15: =Račun!A5 -> Vrsta | F15: Količina | G15: ='[1]Rekapitulacija listića'!$G$14 -> IZNOS
A17: =Račun!G5 -> šećer | F17: =Račun!G$6 -> 88 | G17: =Račun!J$6 -> 86.214
A18: =Račun!K5 -> celuloza | F18: =Račun!K$6 -> 3 | G18: =Račun!N$6 -> 70.55275
A19: =Račun!O5 -> Vitamini | F19: =Račun!O$6 -> 8 | G19: =Račun!R$6 -> 14.40867083
A20: =Račun!S5 -> Minerali | F20: =Račun!U$6 -> 2.642506319 | G20: =Račun!V$6 -> 2.825839653
A21: =Račun!W5 -> soli | F21: =Račun!W$6 -> 10 | G21: =Račun!Z$6 -> 2.360570603
A22: =Račun!AA5 -> bjelančevine | F22: =Račun!AA$6 -> 3 | G22: =Račun!AD$6 -> 0.9855212772
A23: =Račun!AE5 -> Masnoće | F23: =Račun!AE$6 -> 40 | G23: =Račun!AH$6 -> 7.550678901
A24: =Račun!AI5 -> Proteini | F24: =Račun!AI$6 -> 0 | G24: =Račun!AJ$6 -> 0
A25: Ostalo | F25: =Račun!G$6 -> 88 | G25: 0
A26: Masa | F26: =Račun!G$6 -> 88 | G26: =Račun!H$6 -> 16.13333333
A27: Osnova
A28: Stimulansi
A29: ='[1]Bruto s bolovanjem'!$AY$30 -> Dodatak
A31: Ukupni bruto iznos | F31: =SUM(F26,F24,F23,F20,F19,F18,F17) -> 229.6425063 | G31: =SUM(G26,G24,G23,G20,G17) -> 112.7238519
A35: ='[1]Rekapitulacija listića'!A34 -> Poštovani,

Sheet care
A3: =Račun!B$8 -> 30 | B3: =Račun!A$8 -> care
A6: =Račun!I3 -> Lista | C6: =Račun!K3 -> 2010-04-01 | E6: =Račun!M3 -> Na dan | G6: =Račun!O3 -> 2010-05-08
A15: =Račun!A5 -> Vrsta | F15: Količina | G15: ='[1]Rekapitulacija listića'!$G$14 -> IZNOS
A17: =Račun!G5 -> šećer | F17: =Račun!G$8 -> 84 | G17: =Račun!J$8 -> 108.14
A18: =Račun!K5 -> celuloza | F18: =Račun!K$8 -> 8 | G18: =Račun!N$8 -> 38.72666667
A19: =Račun!O5 -> Vitamini | F19: =Račun!O$8 -> 8 | G19: =Račun!R$8 -> 15.58888889
A20: =Račun!S5 -> Minerali | F20: =Račun!U$8 -> 0 | G20: =Račun!V$8 -> 0
A21: =Račun!W5 -> soli | F21: =Račun!W$8 -> 0 | G21: =Račun!Z$8 -> 0
A22: =Račun!AA5 -> bjelančevine | F22: =Račun!AA$8 -> 0 | G22: =Račun!AD$8 -> 0
A23: =Račun!AE5 -> Masnoće | F23: =Račun!AE$8 -> 0 | G23: =Račun!AH$8 -> 0
A24: =Račun!AI5 -> Proteini | F24: =Račun!AI$8 -> 0.2 | G24: =Račun!AJ$8 -> 0.06666666667
A25: Ostalo | F25: =Račun!G$8 -> 84 | G25: 0
A26: Masa | F26: =Račun!G$8 -> 84 | G26: =Račun!H$8 -> 28
A27: Osnova
A28: Stimulansi
A29: ='[1]Bruto s bolovanjem'!$AY$30 -> Dodatak
A31: Ukupni bruto iznos | F31: =SUM(F26,F24,F23,F20,F19,F18,F17) -> 184.2 | G31: =SUM(G26,G24,G23,G20,G17) -> 136.2066667
A35: ='[1]Rekapitulacija listića'!A34 -> Poštovani,

Sheet jagi
A3: =Račun!B$7 -> 68 | B3: =Račun!A$7 -> jagi
A6: =Račun!I3 -> Lista | C6: =Račun!K3 -> 2010-04-01 | E6: =Račun!M3 -> Na dan | G6: =Račun!O3 -> 2010-05-08
A15: =Račun!A5 -> Vrsta | F15: Količina | G15: ='[1]Rekapitulacija listića'!$G$14 -> IZNOS
A17: =Račun!G5 -> šećer | F17: =Račun!G$7 -> 92 | G17: =Račun!J$7 -> 106.4483333
A18: =Račun!K5 -> celuloza | F18: =Račun!K$7 -> 0 | G18: =Račun!N$7 -> 0
A19: =Račun!O5 -> Vitamini | F19: =Račun!O$7 -> 8 | G19: =Račun!R$7 -> 2.01
A20: =Račun!S5 -> Minerali | F20: =Račun!U$7 -> 0 | G20: =Račun!V$7 -> 0
A21: =Račun!W5 -> soli | F21: =Račun!W$7 -> 0 | G21: =Račun!Z$7 -> 0
A22: =Račun!AA5 -> bjelančevine | F22: =Račun!AA$7 -> 0 | G22: =Račun!AD$7 -> 0
A23: =Račun!AE5 -> Masnoće | F23: =Račun!AE$7 -> 40 | G23: =Račun!AH$7 -> 10.05
A24: =Račun!AI5 -> Proteini | F24: =Račun!AI$7 -> 1 | G24: =Račun!AJ$7 -> 0.25
A25: Ostalo | F25: =Račun!G$7 -> 92 | G25: 0
A26: Masa | F26: =Račun!G$7 -> 92 | G26: =Račun!H$7 -> 23
A27: Osnova
A28: Stimulansi
A29: ='[1]Bruto s bolovanjem'!$AY$30 -> Dodatak
A31: Ukupni bruto iznos | F31: =SUM(F26,F24,F23,F20,F19,F18,F17) -> 233 | G31: =SUM(G26,G24,G23,G20,G17) -> 139.7483333
A35: ='[1]Rekapitulacija listića'!A34 -> Poštovani,

Sheet Z
